fUSD/lending_fUSD_20250807
["ID","MTS","AMOUNT","RATE_DAILY","PERIOD"]
[377866685,1754586638016,-500.0,0.00018767,2]
[377866686,1754586638025,-176.21615273,0.00018795,2]
[377866687,1754586638035,-1027.71,0.000188,2]
[377866688,1754586638047,-172.93,0.000188,2]
[377866689,1754586638057,-1600.0,0.000188,6]
[377866690,1754586638067,-1000.0,0.00018802,2]
[377866691,1754586638077,-183.10594484,0.0001881,2]
[377866692,1754586638088,-323.16225545,0.0001881,2]
[377866693,1754586638098,-180.29266792,0.0001881,2]
[377866694,1754586638108,-1000.0,0.00018851,2]
[377866695,1754586638117,-150.0,0.00018854,2]
[377866696,1754586638127,-3927.0,0.00018864,2]
[377866697,1754586638138,-335.07,0.00018873,2]
[377866698,1754586638148,-155.78,0.0001888,2]
[377866699,1754586638158,-4833.37306207,0.00018886,2]
[377866700,1754586638167,-1046.27318716,0.00018889,2]
[377866701,1754586638184,-253.53281284,0.00018889,2]
[377866702,1754586638196,-153.214,0.00018889,2]
[377866703,1754586638209,-4591.79164563,0.00018895,2]
[377866704,1754586638221,-4562.73135322,0.00018895,2]
[377866705,1754586638242,-465.88844996,0.00018895,2]
[377866708,1754586638542,-408.57125119,0.00018895,2]
[377866710,1754586638551,-1722.29802747,0.00018895,2]
[377866712,1754586638561,-2500.0,0.00018895,2]
[377866714,1754586638570,-1000.0,0.00018895,2]
[377866716,1754586638580,-18187.2706,0.000189,2]
[377866718,1754586638591,-247.30366781,0.000189,2]
[377866720,1754586638601,-1180.41,0.000189,2]
[377866722,1754586638611,-1180.41,0.000189,2]
[377866724,1754586638620,-359.18,0.000189,2]
[377866726,1754586638629,-1888.29643693,0.000189,2]
[377866729,1754586638657,-998.58636307,0.000189,2]
[377866730,1754586638667,-234.01031522,0.000189,2]
[377866731,1754586638676,-2000.0,0.000189,6]
[377866732,1754586638685,-8672.80844335,0.000189,2]
[377866733,1754586638695,-151.83410316,0.000189,2]
[377866734,1754586638704,-500.0,0.00018903,2]
[377866735,1754586638714,-1000.0,0.00018905,2]
[377866736,1754586638723,-1000.0,0.00018905,2]
[377866737,1754586638732,-754.14824795,0.00018905,2]
[377866738,1754586638744,-245.85175205,0.00018905,2]
[377866739,1754586638753,-1000.0,0.00018905,2]
[377866740,1754586638763,-1000.0,0.00018905,2]
[377866741,1754586638773,-1000.0,0.00018905,2]
[377866742,1754586638783,-1000.0,0.00018905,2]
[377866743,1754586638792,-1000.0,0.00018905,2]
[377866744,1754586638801,-1000.0,0.00018905,2]
[377866745,1754586638811,-1000.0,0.00018905,2]
[377866746,1754586638820,-1000.0,0.00018905,2]
[377866747,1754586638829,-1000.0,0.00018905,2]
[377866748,1754586638840,-1000.0,0.00018905,2]
[377866749,1754586638850,-1000.0,0.00018905,2]
[377866750,1754586638859,-1000.0,0.00018905,2]
[377866751,1754586638869,-1000.0,0.00018905,2]
[377866752,1754586638879,-1000.0,0.00018905,2]
[377866753,1754586638888,-1000.0,0.00018905,2]
[377866754,1754586638897,-1000.0,0.00018905,2]
[377866755,1754586638908,-1000.0,0.00018905,2]
[377866756,1754586638919,-1000.0,0.00018905,2]
[377866757,1754586638931,-1000.0,0.00018905,2]
[377866758,1754586638940,-1000.0,0.00018905,2]
[377866759,1754586638951,-1000.0,0.00018905,2]
[377866760,1754586638960,-1000.0,0.00018905,2]
[377866761,1754586638969,-1000.0,0.00018905,2]
[377866762,1754586638979,-1000.0,0.00018905,2]
[377866763,1754586638989,-1000.0,0.00018905,2]
[377866764,1754586638999,-1000.0,0.00018905,2]
[377866765,1754586639011,-1000.0,0.00018905,2]
[377866766,1754586639021,-1000.0,0.00018905,2]
[377866767,1754586639032,-1000.0,0.00018905,2]
[377866768,1754586639042,-1088.685,0.00018905,2]
[377866769,1754586639052,-300.0,0.00018912,2]
[377866770,1754586639061,-151.83410316,0.00018913,2]
[377866771,1754586639071,-151.83410316,0.00018926,2]
[377866772,1754586639081,-150.0,0.00018938,2]
[377866773,1754586639092,-150.0,0.0001894,2]
[377866774,1754586639101,-219.0,0.00018941,2]
[377866775,1754586639111,-1000.0,0.00018965,2]
[377866776,1754586639123,-10493.51218357,0.00018968,2]
[377866777,1754586639134,-4833.37306202,0.00018968,2]
[377866778,1754586639143,-543.22199256,0.00018973,2]
[377866779,1754586639153,-500.0,0.00018973,2]
[377866780,1754586639162,-170.090226,0.00018973,2]
[377866781,1754586639171,-500.0,0.00018973,2]
[377866782,1754586639181,-500.0,0.00018973,2]
[377866783,1754586639192,-500.0,0.00018973,2]
[377866784,1754586639206,-500.0,0.00018973,2]
[377866785,1754586639215,-159.08210559,0.00018973,2]
[377866786,1754586639224,-500.0,0.00018973,2]
[377866787,1754586639234,-500.0,0.00018973,2]
[377866788,1754586639243,-500.0,0.00018973,2]
[377866789,1754586639253,-501.2956382,0.00018973,2]
[377866790,1754586639263,-806.64,0.00018978,3]
[377866791,1754586639273,-8672.80844326,0.00018981,2]
[377866792,1754586639283,-500.0,0.00018986,2]
[377866793,1754586639294,-500.0,0.00018986,2]
[377866794,1754586639305,-1000.0,0.00018986,2]
[377866795,1754586639314,-150.0,0.00018986,2]
[377866796,1754586639324,-260.77552978,0.00018986,2]
[377866797,1754586639333,-150.0,0.00018986,2]
[377866798,1754586639344,-150.0,0.00018988,2]
[377866799,1754586639354,-150.0,0.00018988,2]
[377866800,1754586639364,-150.0,0.00018988,2]
[377866801,1754586639373,-150.0,0.00018988,2]
[377866802,1754586639384,-150.0,0.00018988,2]
[377866803,1754586639394,-262.6977922,0.00018988,2]
[377866804,1754586639405,-150.0,0.00018988,2]
[377866805,1754586639414,-197.0,0.00018988,2]
[377866806,1754586639424,-150.0,0.00018988,2]
[377866807,1754586639434,-150.0,0.00018988,2]
[377866808,1754586639443,-150.0,0.00018988,2]
[377866809,1754586639455,-194.6130406,0.0001899,2]
[377866810,1754586639464,-500.0,0.00018994,2]
[377866811,1754586639473,-1000.0,0.00018999,2]
[377866812,1754586639483,-1000.0,0.00018999,2]
[377866813,1754586639495,-209.87701015,0.00018999,2]
[377866814,1754586639505,-300.0,0.00018999,2]
[377866815,1754586639516,-300.0,0.00018999,2]
[377866816,1754586639527,-752071.21511453,0.00019,2]
[377866817,1754586639538,-153.650599,0.00019,2]
[377866818,1754586639547,-151.0,0.00019,2]
[377866819,1754586639557,-151.0,0.00019,2]
[377866820,1754586639567,-154.277432,0.00019,2]
[377866821,1754586639577,-151.0,0.00019,2]
[377866822,1754586639588,-151.0,0.00019,2]
[377866823,1754586639597,-151.0,0.00019,2]
[377866824,1754586639606,-151.0,0.00019,2]
[377866825,1754586639616,-297.69953,0.00019,2]
[377866826,1754586639625,-151.0,0.00019,2]
[377866827,1754586639635,-151.0,0.00019,2]
[377866828,1754586639644,-151.0,0.00019,2]
[377866829,1754586639654,-151.0,0.00019,2]
[377866830,1754586639664,-151.0,0.00019,2]
[377866831,1754586639673,-152.848149,0.00019,2]
[377866832,1754586639682,-940.48600748,0.00019,2]
[377866833,1754586639692,-151.0,0.00019,2]
[377866834,1754586639701,-153.326798,0.00019,2]
[377866835,1754586639711,-278.100647,0.00019,2]
[377866836,1754586639720,-151.0,0.00019,2]
[377866837,1754586639729,-152.199088,0.00019,2]
[377866838,1754586639740,-151.0,0.00019,2]
[377866839,1754586639750,-151.0,0.00019,2]
[377866840,1754586639759,-154.386934,0.00019,2]
[377866841,1754586639769,-140106.29391551,0.00019,2]
[377866842,1754586639779,-151.0,0.00019,2]
[377866843,1754586639789,-153.325754,0.00019,2]
[377866844,1754586639799,-151.0,0.00019,2]
[377866845,1754586639809,-151.0,0.00019,2]
[377866846,1754586639818,-151.0,0.00019,2]
[377866847,1754586639828,-183.043889,0.00019,2]
[377866849,1754586639839,-183.54329,0.00019,2]
[377866850,1754586639849,-154.570862,0.00019,2]
[377866851,1754586639859,-151.0,0.00019,2]
[377866852,1754586639868,-295.96072392,0.00019,2]
[377866853,1754586639878,-150.0,0.00019,7]
[377866854,1754586639888,-151.0,0.00019,2]
[377866855,1754586639898,-152.142732,0.00019,2]
[377866856,1754586639907,-219.222952,0.00019,2]
[377866857,1754586639917,-151.0,0.00019,2]
[377866858,1754586639927,-151.0,0.00019,2]
[377866860,1754586639936,-151.0,0.00019,2]
[377866861,1754586639946,-151.0,0.00019,2]
[377866862,1754586639957,-151.0,0.00019,2]
[377866863,1754586639967,-151.0,0.00019,2]
[377866864,1754586639976,-270.650241,0.00019,2]
[377866865,1754586639985,-270.650241,0.00019,2]
[377866866,1754586639995,-270.650241,0.00019,2]
[377866867,1754586640005,-270.650241,0.00019,2]
[377866868,1754586640015,-225.463491,0.00019,2]
[377866869,1754586640024,-154.120646,0.00019,2]
[377866870,1754586640034,-151.0,0.00019,2]
[377866871,1754586640044,-151.0,0.00019,2]
[377866872,1754586640054,-151.0,0.00019,2]
[377866873,1754586640063,-151.0,0.00019,2]
[377866874,1754586640074,-151.0,0.00019,2]
[377866875,1754586640083,-151.0,0.00019,2]
[377866876,1754586640095,-151.0,0.00019,2]
[377866877,1754586640104,-151.0,0.00019,2]
[377866878,1754586640114,-151.0,0.00019,2]
[377866879,1754586640123,-151.0,0.00019,2]
[377866880,1754586640133,-151.0,0.00019,2]
[377866881,1754586640142,-151.0,0.00019,2]
[377866882,1754586640151,-198.352208,0.00019,2]
[377866883,1754586640161,-151.0,0.00019,2]
[377866884,1754586640170,-151.0,0.00019,2]
[377866885,1754586640179,-151.0,0.00019,2]
[377866886,1754586640189,-152.814092,0.00019,2]
[377866887,1754586640200,-151.0,0.00019,2]
[377866888,1754586640210,-151.0,0.00019,2]
[377866889,1754586640219,-151.0,0.00019,2]
[377866890,1754586640228,-153.225739,0.00019,2]
[377866891,1754586640238,-151.0,0.00019,2]
[377866892,1754586640247,-151.0,0.00019,2]
[377866893,1754586640257,-154.993674,0.00019,2]
[377866894,1754586640267,-151.0,0.00019,2]
[377866895,1754586640278,-151.0,0.00019,2]
[377866896,1754586640287,-151.0,0.00019,2]
[377866897,1754586640296,-151.0,0.00019,2]
[377866898,1754586640307,-151.0,0.00019,2]
[377866899,1754586640409,-151.0,0.00019,2]
[377866900,1754586640419,-151.0,0.00019,2]
[377866901,1754586640428,-151.0,0.00019,2]
[377866902,1754586640437,-151.0,0.00019,2]
[377866903,1754586640447,-151.0,0.00019,2]
[377866904,1754586640456,-151.0,0.00019,2]
[377866905,1754586640465,-151.0,0.00019,2]
[377866906,1754586640475,-154.32935,0.00019,2]
[377866907,1754586640484,-200.0,0.00019,2]
[377866908,1754586640494,-151.0,0.00019,2]
[377866909,1754586640504,-219.121046,0.00019,2]
[377866910,1754586640513,-219.022234,0.00019,2]
[377866911,1754586640522,-151.0,0.00019,2]
[377866912,1754586640532,-151.0,0.00019,2]
[377866913,1754586640544,-151.0,0.00019,2]
[377866914,1754586640554,-151.0,0.00019,2]
[377866915,1754586640564,-151.0,0.00019,2]
[377866916,1754586640574,-200.0,0.00019,2]
[377866917,1754586640583,-151.0,0.00019,2]
[377866918,1754586640598,-151.0,0.00019,2]
[377866919,1754586640608,-151.0,0.00019,2]
[377866920,1754586640617,-159.634736,0.00019,2]
[377866921,1754586640627,-164.340987,0.00019,2]
[377866922,1754586640636,-152.800555,0.00019,2]
[377866923,1754586640645,-889.333248,0.00019,2]
[377866924,1754586640654,-151.0,0.00019,2]
[377866925,1754586640664,-159.892084,0.00019,2]
[377866926,1754586640674,-151.0,0.00019,2]
[377866927,1754586640683,-151.0,0.00019,2]
[377866928,1754586640693,-151.0,0.00019,2]
[377866929,1754586640703,-151.0,0.00019,2]
[377866930,1754586640712,-151.0,0.00019,2]
[377866931,1754586640722,-277.321236,0.00019,2]
[377866932,1754586640731,-151.0,0.00019,2]
[377866933,1754586640741,-151.0,0.00019,2]
[377866934,1754586640751,-277.321236,0.00019,2]
[377866935,1754586640760,-151.0,0.00019,2]
[377866936,1754586640770,-151.0,0.00019,2]
[377866937,1754586640779,-151.0,0.00019,2]
[377866938,1754586640788,-151.0,0.00019,2]
[377866939,1754586640798,-151.0,0.00019,2]
[377866940,1754586640808,-151.0,0.00019,2]
[377866941,1754586640817,-151.0,0.00019,2]
[377866942,1754586640827,-155.456402,0.00019,2]
[377866943,1754586640836,-151.0,0.00019,2]
[377866944,1754586640849,-151.0,0.00019,2]
[377866945,1754586640858,-151.0,0.00019,2]
[377866946,1754586640868,-5737.9196429,0.00019,2]
[377866947,1754586640878,-152.083113,0.00019,2]
[377866948,1754586640887,-151.0,0.00019,2]
[377866949,1754586640896,-151.0,0.00019,2]
[377866950,1754586640905,-36474.0688184,0.00019,2]
[377866951,1754586640914,-151.0,0.00019,2]
[377866952,1754586640924,-19180.18112595,0.00019,2]
[377866953,1754586641532,-323.16225545,0.00018973,2]
[377866954,1754586641542,-4721.96485053,0.00019,2]
[377866955,1754586641808,-24104.6103854,0.00019,2]
[377866956,1754586641851,-3082.01009032,0.00019,2]
[377866957,1754586641861,-151.0,0.00019,2]
[377866958,1754586641870,-9515.68195788,0.00019,2]
[377866959,1754586641888,-348.82372796,0.00019,2]
[377866960,1754586641904,-34603.95138206,0.00019,2]
[377866961,1754586641913,-151.0,0.00019,2]
[377866962,1754586641923,-1235.37699,0.00019,2]
[377866963,1754586641932,-151.0,0.00019,2]
[377866964,1754586641941,-151.0,0.00019,2]
[377866965,1754586641951,-151.0,0.00019,2]
[377866966,1754586641960,-151.0,0.00019,2]
[377866967,1754586641969,-152.712497,0.00019,2]
[377866968,1754586641979,-500.0,0.00019,2]
[377866969,1754586641988,-43084.7008864,0.00019,2]
[377866970,1754586641997,-500.0,0.00019,2]
[377866971,1754586642006,-500.0,0.00019,2]
[377866972,1754586642017,-500.0,0.00019,2]
[377866973,1754586642026,-152.712497,0.00019,2]
[377866974,1754586642035,-523.36,0.00019,2]
[377866975,1754586642044,-151.0,0.00019,2]
[377866976,1754586642054,-151.0,0.00019,2]
[377866977,1754586642063,-151.0,0.00019001,2]
[377866978,1754586642073,-151.0,0.00019001,2]
[377866979,1754586642082,-7843.36574754,0.00019013,2]
[377866980,1754586642099,-4382.30701388,0.00019013,2]
[377866981,1754586642111,-268.38031228,0.00019013,2]
[377866982,1754586642121,-151.0,0.00019013,2]
[377866983,1754586642131,-152.588761,0.00019013,2]
[377866984,1754586642140,-151.0,0.00019013,2]
[377866985,1754586642150,-16749.6812732,0.00019026,2]
[377866986,1754586642159,-4552.2152971,0.00019026,2]
[377866988,1754586642168,-4833.37306202,0.0001905,2]
[377866989,1754586642177,-8672.80844326,0.00019061,2]
[377866990,1754586642187,-7826.2422,0.00019073,2]
[377866991,1754586642197,-151.0,0.00019073,2]
[377866992,1754586642211,-151.0,0.00019073,2]
[377866993,1754586642221,-4109.4163093,0.00019078,2]
[377866994,1754586642231,-255.0,0.0001911,2]
[377866995,1754586642242,-255.0,0.00019115,2]
[377866996,1754586642251,-841.0,0.00019115,2]
[377866997,1754586642260,-255.0,0.0001912,2]
[377866998,1754586642271,-257.13577246,0.00019125,2]
[377866999,1754586642282,-4833.37306202,0.00019133,2]
[377867000,1754586642293,-1445.0,0.00019142,2]
[377867001,1754586642302,-8672.80844326,0.00019142,2]
[377867002,1754586642311,-234.01031513,0.00019163,2]
[377867003,1754586642321,-151.0,0.00019165,2]
[377867004,1754586642332,-151.0,0.00019165,2]
[377867005,1754586642343,-151.0,0.00019165,2]
[377867006,1754586642352,-151.0,0.00019165,2]
[377867007,1754586642361,-150.0,0.0001917,2]
[377867008,1754586642371,-244.42828675,0.00019173,2]
[377867009,1754586642381,-394.33670116,0.00019173,2]
[377867010,1754586642390,-500.0,0.00019173,2]
[377867011,1754586642399,-500.0,0.00019173,2]
[377867012,1754586642409,-500.0,0.00019173,2]
[377867013,1754586642418,-500.0,0.00019173,2]
[377867014,1754586642428,-500.21838561,0.00019173,2]
[377867015,1754586642437,-500.791237,0.00019173,2]
[377867016,1754586642447,-501.28051586,0.00019173,2]
[377867017,1754586642457,-500.0,0.00019173,2]
[377867018,1754586642467,-201.15301418,0.00019173,2]
[377867019,1754586642476,-500.0,0.00019173,2]
[377867020,1754586642486,-500.0,0.00019173,2]
[377867021,1754586642495,-500.0,0.00019173,2]
[377867022,1754586642505,-501.53085484,0.00019173,2]
[377867023,1754586642514,-500.0,0.00019173,2]
[377867024,1754586642523,-564.71802412,0.00019173,2]
[377867025,1754586642533,-500.0,0.00019173,2]
[377867026,1754586642543,-500.0,0.00019173,2]
[377867027,1754586642552,-500.0,0.00019173,2]
[377867028,1754586642562,-500.0,0.00019173,2]
[377867029,1754586642571,-500.0,0.00019173,2]
[377867030,1754586642580,-401.42400634,0.00019173,2]
[377867031,1754586642591,-500.0,0.00019173,2]
[377867032,1754586642600,-517.82456077,0.00019173,2]
[377867033,1754586642609,-500.0,0.00019173,2]
[377867034,1754586642619,-500.0,0.00019173,2]
[377867035,1754586642628,-502.45547047,0.00019173,2]
[377867036,1754586642638,-500.0,0.00019173,2]
[377867037,1754586642647,-500.0,0.00019173,2]
[377867038,1754586642656,-500.0,0.00019173,2]
[377867039,1754586642666,-500.0,0.00019173,2]
[377867040,1754586642675,-502.08378816,0.00019173,2]
[377867041,1754586642685,-500.0,0.00019173,2]
[377867042,1754586642697,-500.0,0.00019173,2]
[377867043,1754586642707,-501.0026147,0.00019173,2]
[377867044,1754586642717,-500.0,0.00019173,2]
[377867045,1754586642729,-500.0,0.00019173,2]
[377867046,1754586642739,-500.0,0.00019173,2]
[377867047,1754586642748,-506.51904449,0.00019173,2]
[377867048,1754586642757,-500.68541346,0.00019173,2]
[377867049,1754586642766,-500.0,0.00019173,2]
[377867050,1754586642776,-500.0,0.00019173,2]
[377867051,1754586642785,-151.0,0.00019173,2]
[377867052,1754586642795,-151.0,0.00019173,2]
[377867053,1754586642804,-151.0,0.00019173,2]
[377867054,1754586642813,-151.0,0.00019173,2]
[377867056,1754586642822,-151.0,0.00019173,2]
[377867057,1754586642831,-300.0,0.00019177,2]
[377867058,1754586642843,-9437.08115347,0.00019178,2]
[377867059,1754586642853,-151.21645502,0.00019178,2]
[377867060,1754586642862,-242.83466531,0.00019178,2]
[377867062,1754586642871,-151.0,0.00019178,2]
[377867064,1754586642881,-151.0,0.00019178,2]
[377867066,1754586642890,-156.650657,0.00019178,2]
[377867068,1754586642900,-151.0,0.00019178,2]
[377867069,1754586642908,-285.63619637,0.00019178,2]
[377867071,1754586642917,-151.0,0.00019178,2]
[377867073,1754586642927,-151.0,0.00019178,2]
[377867075,1754586642936,-151.0,0.00019178,2]
[377867078,1754586642945,-151.0,0.00019178,2]
[377867080,1754586642955,-151.0,0.00019178,2]
[377867082,1754586642964,-151.0,0.00019178,2]
[377867085,1754586642975,-151.0,0.00019178,2]
[377867088,1754586642984,-204.769884,0.00019178,2]
[377867091,1754586642994,-151.0,0.00019178,2]
[377867094,1754586643003,-151.0,0.00019178,2]
[377867099,1754586643014,-270.650241,0.00019178,2]
[377867102,1754586643023,-270.650241,0.00019178,2]
[377867106,1754586643033,-270.650241,0.00019178,2]
[377867110,1754586643042,-270.650241,0.00019178,2]
[377867115,1754586643052,-270.650241,0.00019178,2]
[377867117,1754586643061,-270.650241,0.00019178,2]
[377867122,1754586643070,-270.650241,0.00019178,2]
[377867126,1754586643081,-270.650241,0.00019178,2]
[377867128,1754586643094,-270.650241,0.00019178,2]
[377867130,1754586643103,-270.650241,0.00019178,2]
[377867132,1754586643113,-270.650241,0.00019178,2]
[377867134,1754586643123,-270.650241,0.00019178,2]
[377867136,1754586643132,-270.650241,0.00019178,2]
[377867137,1754586643142,-270.650241,0.00019178,2]
[377867138,1754586643151,-270.650241,0.00019178,2]
[377867139,1754586643160,-270.650237,0.00019178,2]
[377867140,1754586643170,-151.0,0.00019178,2]
[377867141,1754586643179,-151.0,0.00019178,2]
[377867142,1754586643190,-151.0,0.00019178,2]
[377867143,1754586643199,-151.0,0.00019178,2]
[377867144,1754586643211,-151.0,0.00019178,2]
[377867145,1754586643220,-151.0,0.00019178,2]
[377867146,1754586643229,-151.0,0.00019178,2]
[377867147,1754586643239,-151.0,0.00019178,2]
[377867148,1754586643250,-151.0,0.00019178,2]
[377867149,1754586643259,-151.0,0.00019178,2]
[377867150,1754586643269,-151.0,0.00019178,2]
[377867151,1754586643279,-151.0,0.00019178,2]
[377867152,1754586643288,-151.0,0.00019178,2]
[377867153,1754586643298,-151.0,0.00019178,2]
[377867154,1754586643307,-151.0,0.00019178,2]
[377867155,1754586643317,-262.815086,0.00019178,2]
[377867156,1754586643326,-211.252306,0.00019178,2]
[377867157,1754586643335,-400.0,0.00019178,2]
[377867158,1754586643348,-400.0,0.00019178,2]
[377867159,1754586643357,-400.0,0.00019178,2]
[377867160,1754586643366,-400.0,0.00019178,2]
[377867161,1754586643375,-400.09774313,0.00019178,2]
[377867162,1754586643384,-400.0,0.00019178,2]
[377867163,1754586643394,-400.0,0.00019178,2]
[377867164,1754586643403,-151.0,0.00019178,2]
[377867165,1754586643412,-151.0,0.00019178,2]
[377867166,1754586643422,-151.0,0.00019178,2]
[377867167,1754586643431,-186.41594,0.00019178,2]
[377867168,1754586643441,-400.0,0.00019178,2]
[377867169,1754586643450,-400.0,0.00019178,2]
[377867170,1754586643459,-400.0,0.00019178,2]
[377867171,1754586643469,-400.0,0.00019178,2]
[377867172,1754586643478,-400.0,0.00019178,2]
[377867173,1754586643487,-403.09887124,0.00019178,2]
[377867174,1754586643496,-400.0,0.00019178,2]
[377867175,1754586643506,-400.0,0.00019178,2]
[377867176,1754586643515,-400.0,0.00019178,2]
[377867177,1754586643524,-151.0,0.00019178,2]
[377867178,1754586643535,-151.0,0.00019178,2]
[377867179,1754586643544,-400.0,0.00019178,2]
[377867180,1754586643553,-151.0,0.00019178,2]
[377867181,1754586643562,-151.0,0.00019178,2]
[377867182,1754586643571,-151.0,0.00019178,2]
[377867183,1754586643580,-375.80882953,0.00019178,2]
[377867184,1754586643592,-151.0,0.00019178,2]
[377867185,1754586643601,-151.0,0.00019178,2]
[377867186,1754586643610,-151.0,0.00019178,2]
[377867187,1754586643620,-151.0,0.00019178,2]
[377867188,1754586643630,-151.0,0.00019178,2]
[377867189,1754586643639,-253.81761,0.00019178,2]
[377867190,1754586643649,-400.0,0.00019178,2]
[377867192,1754586643658,-400.0,0.00019178,2]
[377867194,1754586643668,-400.0,0.00019178,2]
[377867195,1754586643677,-400.0,0.00019178,2]
[377867196,1754586643687,-400.0,0.00019178,2]
[377867197,1754586643697,-400.0,0.00019178,2]
[377867198,1754586643706,-151.0,0.00019178,2]
[377867199,1754586643715,-151.0,0.00019178,2]
[377867200,1754586643725,-219.840988,0.00019178,2]
[377867201,1754586643734,-400.0,0.00019178,2]
[377867202,1754586643743,-400.0,0.00019178,2]
[377867203,1754586643753,-151.0,0.00019178,2]
[377867204,1754586643762,-400.0,0.00019178,2]
[377867205,1754586643772,-400.0,0.00019178,2]
[377867206,1754586643782,-400.0,0.00019178,2]
[377867207,1754586643791,-307.21019941,0.00019178,2]
[377867208,1754586643801,-748.98,0.00019178,2]
[377867209,1754586643811,-400.0,0.00019178,2]
[377867210,1754586643820,-400.0,0.00019178,2]
[377867211,1754586643830,-549.17,0.00019178,2]
[377867212,1754586643839,-400.0,0.00019178,2]
[377867213,1754586643850,-151.0,0.00019178,2]
[377867214,1754586643859,-151.0,0.00019178,2]
[377867215,1754586643868,-432.08,0.00019178,2]
[377867216,1754586643877,-938.68,0.00019178,2]
[377867217,1754586643887,-401.37243562,0.00019178,2]
[377867218,1754586643896,-589.84,0.00019178,2]
[377867219,1754586643905,-789.33,0.00019178,2]
[377867220,1754586643915,-400.0,0.00019178,2]
[377867221,1754586643925,-400.0,0.00019178,2]
[377867222,1754586643934,-1457.33,0.00019178,2]
[377867223,1754586643944,-400.0,0.00019178,2]
[377867224,1754586643953,-300.62678984,0.00019178,2]
[377867225,1754586643962,-400.0,0.00019178,2]
[377867226,1754586643972,-400.0,0.00019178,2]
[377867227,1754586643982,-487.91493886,0.00019178,2]
[377867228,1754586643992,-400.0,0.00019178,2]
[377867229,1754586644002,-551.7,0.00019178,2]
[377867230,1754586644011,-400.0,0.00019178,2]
[377867231,1754586644020,-400.0,0.00019178,2]
[377867232,1754586644030,-400.0,0.00019178,2]
[377867233,1754586644039,-400.0,0.00019178,2]
[377867234,1754586644048,-400.0,0.00019178,2]
[377867235,1754586644057,-1121.84,0.00019178,2]
[377867236,1754586644066,-400.0,0.00019178,2]
[377867237,1754586644075,-400.0,0.00019178,2]
[377867238,1754586644085,-1006.39,0.00019178,2]
[377867239,1754586644096,-452.08,0.00019178,2]
[377867240,1754586644105,-400.0,0.00019178,2]
[377867241,1754586644114,-151.0,0.00019178,2]
[377867242,1754586644123,-151.0,0.00019178,2]
[377867243,1754586644132,-151.0,0.00019178,2]
[377867244,1754586644141,-151.0,0.00019178,2]
[377867245,1754586644151,-151.0,0.00019178,2]
[377867246,1754586644160,-151.0,0.00019178,2]
[377867247,1754586644169,-151.0,0.00019178,2]
[377867248,1754586644179,-400.0,0.00019178,2]
[377867249,1754586644187,-151.0,0.00019178,2]
[377867250,1754586644202,-151.0,0.00019178,2]
[377867251,1754586644211,-281.187906,0.00019178,2]